Cogmind - Beta 13 @@@ ROGUE MODE // 2024.04.11 @ 17:32:45 Player: HoneyComb Result: Destroyed by G-47 Trooper with Particle Gun Performance ------------- Evolutions (2) 1000 Regions Visited (3) 600 Robots Destroyed (14) 70 Value Destroyed (432) 432 Prototype IDs (2) 40 Alien Tech Used (0) 0 Bonus (200) 200 TOTAL SCORE: 2342 Bonus ------- Pacifist 200 Cogmind --------- Core Integrity 0/550 Matter 300/300 Energy 100/100 System Corruption 1% Temperature Cool (9) Movement Core (50) Location -8/Materials Parts ------- > --- POWER (1) -------- (None) > --- PROPULSION (4) --- (None) > --- UTILITY (4) ------ Advanced Visual Processing Unit > --- WEAPON (2) ------- (None) > --- INVENTORY (5) ---- (None) Peak State ------------ > --- POWER ------------ Ion Engine > --- PROPULSION ------- Wheel Wheel Compact Wheel Compact Wheel > --- UTILITY ---------- High-capacity Battery Advanced Visual Processing Unit Light Armor Plating Light Armor Plating > --- WEAPON ----------- Advanced Beam Cannon Enhanced Autogun > --- INVENTORY -------- Advanced Beam Cannon [Rating: 18] Favorites ----------- Power Ion Engine Engine Ion Engine Propulsion Wheel Wheel Wheel Utility Light Armor Plating Storage High-capacity Battery Processor Advanced Visual Processing Unit Protection Light Armor Plating Weapon Assault Rifle Energy Gun Small Laser Energy Cannon Advanced Beam Cannon Ballistic Gun Assault Rifle Build | -11 -10 -9 -8 ------- Run | Yrd Mat Mat Mat Slots Evolved 4 | . . 2 2 Power . | . . . . Propulsion 2 | . . 1 1 Utility 2 | . . 1 1 Weapon . | . . . . Parts Attached 19 | 4 2 7 6 Power 3 | 1 . 2 . Engine 3 | 1 . 2 . Core . | . . . . Reactor . | . . . . Propulsion 4 | 2 . 1 1 Treads . | . . . . Leg . | . . . . Wheel 4 | 2 . 1 1 Hover . | . . . . Flight . | . . . . Utility 5 | . . 4 1 Device . | . . . . Storage 1 | . . 1 . Processor 1 | . . . 1 Hackware . | . . . . Protection 3 | . . 3 . Artifact . | . . . . Weapon 7 | 1 2 . 4 Energy Gun 2 | . 2 . . Energy Cannon 3 | . . . 3 Ballistic Gun 2 | 1 . . 1 Ballistic Cannon . | . . . . Launcher . | . . . . Special Weapon . | . . . . Impact Weapon . | . . . . Slashing Weapon . | . . . . Piercing Weapon . | . . . . Special Melee Weapon . | . . . . Unidentified Prototypes 2 | . . . 2 Parts Lost 10 | . . 2 8 Power 2 | . . 1 1 Propulsion 4 | . . . 4 Utility 2 | . . 1 1 Weapon 2 | . . . 2 Highest Loss Streak 7 | . . 1 7 To Critical Strikes . | . . . . Average Slot Usage (%) 72 | . 65 72 74 Engine 9 | . 14 10 7 Wheel 24 | . 28 26 21 Storage 5 | . . 5 8 Processor 3 | . . . 8 Protection 9 | . . 8 13 Energy Gun 6 | . 8 11 2 Energy Cannon 4 | . . . 10 Ballistic Gun 7 | . 14 11 2 Naked Turns . | . . . . Heaviest Build 23 | 7 9 18 23 Greatest Support 52 | 26 26 36 52 Greatest Overweight (x) 2 | . . . 2 Average Overweight (x) . | . . . . Largest Inventory Capacity 5 | 5 5 5 5 Average Capacity 5 | 5 5 5 5 Most Carried 4 | 4 1 1 3 Average Carried . | . . . . Final Capacity 5 | 5 5 5 5 Final Carried . | . . . . Class Distribution -------------------- 100% | Mutant Dominant Class ---------------- Mutant | -10/Materials Mutant | -9/Materials Mutant | -8/Materials Resources | -11 -10 -9 -8 ----------- Run | Yrd Mat Mat Mat Matter Collected 502 | 224 . 228 50 Remotely . | . . . . Salvage Created 529 | . . 420 109 Parts 35 | . . 23 12 Haulers Intercepted . | . . . . Recyclers Shooed . | . . . . Parts Field Recycled . | . . . . Retrieved Matter . | . . . . Parts Self-Destructed . | . . . . Prevented . | . . . . Kills | -11 -10 -9 -8 ------- Run | Yrd Mat Mat Mat Combat Hostiles Destroyed 13 | . . 9 4 Guns 9 | . . 9 . Cannons 4 | . . . 4 Classes Destroyed 5 | . . 3 2 Operator 1 | . . . 1 Swarmer 3 | . . . 3 Grunt 5 | . . 5 . Brawler 1 | . . 1 . Sentry 4 | . . 3 1 Best Kill Streak 3 | . . 3 3 Combat Bots Only 3 | . . 3 3 Max Kills in Single Turn 1 | . . 1 1 Gunslinging . | . . . . Exploded . | . . . . Melee . | . . . . Uniques/NPCs Destroyed . | . . . . Combat | -11 -10 -9 -8 -------- Run | Yrd Mat Mat Mat Hostile Shots Fired 168 | . . 64 104 Missed 52 | . . 25 27 Damage Taken 1658 | . . 487 1171 Core 730 | . . 166 564 Absorbed by Shields . | . . . . Core Remaining (%) 86 | 100 100 58 . Volleys Fired 54 | . . 44 10 Largest 2 | . . 2 2 Hottest 136 | . . 60 136 Shots Fired 95 | . . 75 20 Gun 75 | . . 75 . Cannon 20 | . . . 20 Launcher . | . . . . Special . | . . . . Kinetic 44 | . . 44 . Thermal 51 | . . 31 20 Explosive . | . . . . Electromagnetic . | . . . . Robot Hit Streak 17 | . . 17 8 Robot Miss Streak 3 | . . 2 3 Penetration Max . | . . . . Secondary Targets 1 | . . 1 . Max Gunslinging Chain 1 | . . 1 . Shots Hit Robots 60 | . . 50 10 Core Hits 27 | . . 19 8 Critical Kills . | . . . . Critical Parts Destroyed 1 | . . 1 . Critical Strikes 1 | . . 1 . Destroy 1 | . . 1 . Melee Attacks . | . . . . Impact . | . . . . Slashing . | . . . . Piercing . | . . . . Sneak Attacks . | . . . . Combat Hostiles . | . . . . Follow-up Attacks . | . . . . Damage Inflicted 821 | . . 601 220 Guns 601 | . . 601 . Cannons 205 | . . . 205 Explosions . | . . . . Melee . | . . . . Ramming 15 | . . . 15 Kinetic 390 | . . 390 . Thermal 416 | . . 211 205 Explosive . | . . . . Electromagnetic . | . . . . Impact . | . . . . Slashing . | . . . . Piercing . | . . . . Highest Corruption 1 | . . . 1 Average Corruption 1 | . . . 1 Corruption Purged . | . . . . Corruption Blocked . | . . . . Overload Shots . | . . . . Overflow Damage . | . . . . Projectiles . | . . . . Explosions . | . . . . Melee . | . . . . Knockbacks . | . . . . Impact . | . . . . Kinetic . | . . . . Secondary . | . . . . Self-Inflicted Damage 6 | . . . 6 Shots . | . . . . Rammed 6 | . . . 6 Targets Rammed 6 | . . . 6 Kicked . | . . . . Crushed . | . . . . Highest Temperature 252 | . . 84 252 Average Temperature 76 | . . 27 117 Received Heat Transfer 969 | . . 276 693 Siege Activations . | . . . . Robots Corrupted . | . . . . Combat Hostiles . | . . . . Parts Fried . | . . . . Impact Corruptions . | . . . . Robots Melted . | . . . . Combat Hostiles . | . . . . Parts Melted . | . . . . Heat Transferred 845 | . . 475 370 Parts Sabotaged . | . . . . Parts Stolen . | . . . . Parts Stripped . | . . . . Power Chain Reactions . | . . . . Alert | -11 -10 -9 -8 ------- Run | Yrd Mat Mat Mat Peak Influence 306 | . . 306 200 Initial 55 | . . . 55 Average 86 | . . 119 91 Maximum Alert Level 1 | . . 1 1 Low Security (%) 92 | 100 100 82 99 Level 1 7 | . . 17 . Level 2 . | . . . . Level 3 . | . . . . Level 4 . | . . . . Level 5 . | . . . . High Security . | . . . . Max Security . | . . . . Squads Dispatched 3 | . . 1 2 Investigation . | . . . . Extermination . | . . . . Reinforcement 3 | . . 1 2 Assault . | . . . . Garrison . | . . . . Intercept . | . . . . Searches Triggered . | . . . . Construction Impeded . | . . . . Haulers Reinforced . | . . . . Active Scanning Responses . | . . . . Cargo Convoy Interrupts . | . . . . Stealth | -11 -10 -9 -8 --------- Run | Yrd Mat Mat Mat Distress Signals 3 | . . 1 2 Communications Jammed . | . . . . Distress Signals . | . . . . Times Spotted 38 | . . 15 23 Peak Tracking Total 17 | . . 4 17 Tactical Retreats 4 | . . 1 3 Traps | -11 -10 -9 -8 ------- Run | Yrd Mat Mat Mat Traps Triggered 1 | . . . 1 Indirectly . | . . . . Trap Hack Attempts . | . . . . Triggered . | . . . . Disarmed . | . . . . Reprogrammed . | . . . . Reused . | . . . . Traps Extracted . | . . . . Installed . | . . . . Triggered . | . . . . Machines | -11 -10 -9 -8 ---------- Run | Yrd Mat Mat Mat Machines Disabled . | . . . . Max in Single Turn . | . . . . Machines Repaired . | . . . . Machines Dismantled . | . . . . Machines Sabotaged . | . . . . Overloaded Fab Kills . | . . . . Hacking | -11 -10 -9 -8 --------- Run | Yrd Mat Mat Mat Machines Accessed 1 | . 1 . . Terminals 1 | . 1 . . Fabricators . | . . . . Repair Stations . | . . . . Recycling Units . | . . . . Scanalyzers . | . . . . Garrison Access . | . . . . Total Hacks 1 | . 1 . . Successful . | . . . . Failed 1 | . 1 . . Catastrophic 1 | . 1 . . Database Lockouts . | . . . . Manual . | . . . . Terminals 1 | . 1 . . Fabricators . | . . . . Repair Stations . | . . . . Recycling Units . | . . . . Scanalyzers . | . . . . Garrison Access . | . . . . Terminal Hacks . | . . . . Fabricator Hacks . | . . . . Repair Station Hacks . | . . . . Recycling Unit Hacks . | . . . . Scanalyzer . | . . . . Garrison Access Hacks . | . . . . Unauthorized Hacks . | . . . . Terminals . | . . . . Fabricators . | . . . . Repair Stations . | . . . . Recycling Units . | . . . . Scanalyzers . | . . . . Garrison Access . | . . . . Data Cores Recovered . | . . . . Used . | . . . . Hacking Detections 1 | . 1 . . Full Trace Events . | . . . . Feedback Events . | . . . . Feedback Blocked . | . . . . Robot Schematics Acquired . | . . . . Robots Built . | . . . . Authchips . | . . . . Time . | . . . . Total Robot Build Rating . | . . . . Part Schematics Acquired . | . . . . Parts Built . | . . . . Authchips . | . . . . Time . | . . . . Total Part Build Rating . | . . . . Parts Repaired . | . . . . Time . | . . . . Parts Recycled . | . . . . Recycled Matter . | . . . . Retrieved Matter . | . . . . Retrieved Components . | . . . . Parts Scanalyzed . | . . . . Part Schematics Acquired . | . . . . Parts Damaged . | . . . . Bothacking | -11 -10 -9 -8 ------------ Run | Yrd Mat Mat Mat Used RIF Installer . | . . . . Robots Hacked . | . . . . Non-combat . | . . . . Combat . | . . . . Robot Hacks Applied . | . . . . Relay Couplers Released . | . . . . Fabnet Peak Effective % . | . . . . Robots Rewired . | . . . . Allies Hacked . | . . . . Hacks Repelled . | . . . . Allies | -11 -10 -9 -8 -------- Run | Yrd Mat Mat Mat Total Allies . | . . . . Largest Group . | . . . . Highest-Rated Group . | . . . . Highest-Rated Ally . | . . . . Total Orders . | . . . . Ally Attacks . | . . . . Total Damage . | . . . . Kills . | . . . . Allies Corrupted . | . . . . Allies Melted . | . . . . Intel | -11 -10 -9 -8 ------- Run | Yrd Mat Mat Mat Robot Analysis Total . | . . . . Derelict Logs Recovered . | . . . . Drone Launches . | . . . . Drone Recoveries . | . . . . Exploration | -11 -10 -9 -8 ------------- Run | Yrd Mat Mat Mat Turns Passed 1081 | 39 155 440 447 Spaces Moved 988 | 39 157 346 446 Core 91 | 10 . . 81 Treads . | . . . . Legs . | . . . . Wheels 897 | 29 157 346 365 Hover . | . . . . Flight . | . . . . Fastest Speed 50 | 50 90 86 50 Average Speed 86 | 79 90 88 83 Slowest Speed 150 | 90 90 90 150 Overloaded Moves . | . . . . Propulsion Burnouts . | . . . . Robots Hopped . | . . . . Cave-ins Triggered . | . . . . Exploration Rate (%) 21 | 4 26 22 33 Regions Visited 3 Branch Regions . Pre-discovered Areas . | . . . . Known Exits Taken . | . . . . Unknown Exits Taken 3 | 1 1 1 . Scrap Searched . | . . . . Spaces Dug . | . . . . Terrain Destroyed . | . . . . Melee . | . . . . Projectile . | . . . . AOE . | . . . . Terrain Rammed . | . . . . Walls Destroyed . | . . . . Machines Disabled . | . . . . Actions | -11 -10 -9 -8 --------- Run | Yrd Mat Mat Mat Total 1123 | 46 171 404 502 Wait 32 | . 10 . 22 Move 985 | 38 156 345 446 Hop . | . . . . Pick Up 18 | 4 2 7 5 Fast Attach . | . . . . Attach 17 | 4 2 6 5 Detach 2 | . . . 2 Swap 2 | . . 1 1 Drop 7 | . 1 1 5 Fire 54 | . . 44 10 Melee . | . . . . Ram 6 | . . . 6 Kick . | . . . . Crush . | . . . . Escape Stasis . | . . . . Rewire . | . . . . Trap . | . . . . Miscellaneous . | . . . . Route ------- -11/Scrapyard -10/Materials -9/Materials -8/Materials History --------- Turn | Location | Event 6 | -11/Scrapyard | Discovered new exit (range 15) 40 | -11/Scrapyard | Entered Materials 186 | -10/Materials | Discovered new exit (range 10) 195 | -10/Materials | Entered another Materials area 195 | -9/Materials | Evolved 2 slots: Propulsion x1, Utility x1 309 | -9/Materials | Build established: Mutant 614 | -9/Materials | Discovered new exit (range 16) 635 | -9/Materials | Entered another Materials area 635 | -8/Materials | Evolved 2 slots: Propulsion x1, Utility x1 1015 | -8/Materials | Core integrity fell below 50% 1042 | -8/Materials | Lost 7 parts (1p4n2w) 1042 | -8/Materials | Core integrity fell below 20% 1082 | -8/Materials | Destroyed by G-47 Trooper with Particle Gun Last Messages --------------- Adv. Beam Cannon destroyed. K-01 Serf collects debris. Com. Wheel destroyed. Critical hit (Burn: +37). K-01 Serf collects debris. Adv. Beam Cannon destroyed. Critical hit (Burn: +37). K-01 Serf collects debris. Critical hit (Burn: +37). Slammed into L-31 Rogue. Slammed into G-47 Trooper. Destabilizing: System corrupted (+1). Slammed into G-47 Trooper. Destabilizing: System interference. Adv. Visual Processing Unit temporarily disabled. Critical hit (Burn: +37). Hcp. Battery destroyed. Critical hit (Burn: +37). Slammed into A-02 Transporter. Map ----- +----------------------------------------------------+ | | | ????????????????############??????????????? | | ???????????????# #??????????????? | | ?????????#?????# """ #??????????????? | | ????##### ?????# """ [ #??????????????? | | ?? ? ]?????#% """ #??????????????? | | ??? ######% " " #??????????????? | | ?? # + "R" #??????????????? | | ??""" """ # %# """ #??????????????? | | ? """ """ # % ######+#########??##???????? | | # """ """ # #? ?? ????? | | # # # """ ???? | | ? """ """ / # """ ???? | | ? """ """ # + """ ???? | | # """ """ # # #??? | | # ###T#+#####+### #???????????? | | # """ #?###?????????# #???????????? | | # """ "" #?????????????# #???????????? | | # """ S"" #?????????????# #???????????? | | # "" #?????????????# #???????????? | | # #?????????????#% #???????????? | | ######+####?????????????# #???????????? | | ?????# #????????????????# #???????????? | | ?????# #????????????????# #???????????? | | ?????# #??????########### #???????????? | | ?????# #??????# @# %% #???????????? | | ?????# #??????# # #???????????? | | ?????#/######## # #???????????? | | ?????# # # !// #???????????? | | ?????# """"" !# g# !// #???????????? | | ?????# """"" # g !/ ##??????????? | | ?????# """"" # # ###+#####] ? | | ?????# """"" # # #? | | ?????# """"" =# # [! #? | | ?????# """"" ###### [! ^ #? | | ?????# """"" ###### $ ####? | | ?????# + % #???? | | ?????#####+######### ######+#???? | | ???????# ########+#### #?????? ??? | | ???????# ## ] # #???????""?? | | ???????# T + """ ! # #????????" ? | | ???????#! ## """ # #??????????? | | ???????# ## """ # #??????????? | | ######### ### "T" # #??????????? | | #!!] * # #?# """ # #??????????? | | #!!] + ### # #??????????? | | #!] # T############# #??????????? | | ?#####+## ## ! ####### #??????????? | | # # #??????????? | | # + #??????????? | +----------------------------------------------------+ Best States ------------- Heat Dissipation 31 Energy Generation 10 Energy Capacity 500 Matter Stores 300 Matter Capacity 300 Sight Range 20 Terrain Scan Density 10 Armor Coverage 300 Evasion (%) 50 Item Schematics ----------------- None Robot Schematics ------------------ None Fabricated ------------ Nothing Alien Tech Used ----------------- None Achievements -------------- None Challenges ------------ None Game ------ Seed NeutrinoAlertVibroblade Manual? 0 Play Time 00:18:21 Cumulative 3.2 hours Start 2024.04.11 @ 17:15:37 End 2024.04.11 @ 17:32:45 Sessions 1 Manual Loads 0 Difficulty Rogue Special Mode None Game No. 10 Rogue 5 Adventurer 5 Explorer 0 Win Type - Total 0 Types 0/0/0/0/0/0/0/0/0 Lore% 1 Gallery% 5 Achievement% 5 Wizard Run 0 Options --------- Layout 1 ASCII 0 Keyboard 0 Movement Numpad Keybinds 0 Fullscreen 1 Font 24/Smallcaps Map View 50x35 Zoom Use 0% Tactical HUD 0 Map Filters NONE Filters NONE Steam 1 RUN: 018eea16-21b2-4c0f-ae30-ecc3794f9673